{"text_format":"1","workbook":"xlsx","n_sheets":2,"sheets":["Feuil1","CdC"],"not_rendered":{"charts":0,"images":0,"macros":1,"external_links":0,"defined_names":0,"comments":0,"pivot_tables":0},"unopened":[],"bounds":{"document_bytes":16777216,"sheet_cells":100000,"rows_first":2000,"rows_last":500,"rows_between":2000,"halvings":0,"cell_chars":16384,"cell_head_chars":4096},"cells_cut":0,"cells_raw":0,"read":"whole","date_system":"1900"}

{"sheet":"Feuil1","index":0,"n_rows":91,"n_cols":25,"rows_kept":91,"cut":false,"hidden":false,"merged":[]}
[]
[]
[]
[]
[]
[]
[null,null,null,null,null,null,null,null,null,null,"Nom individu",null,null,null,null,null,null,null,null,null,"Date limite"," ","Message d'alerte","Retour fait ?","Date envoi mail de relance"]
[null,null,null,null,null,null,null,null,null,null,"A",null,null,null,null,null,null,null,null,null,"2017-02-23",null,{"$f":"IF(OR(U8=\"\",Y8<>\"\"),\"\",IF(X8=\"\",IF((WORKDAY(U8,$L$2,0)<TODAY()),\"Alerte, mail de relance à faire\",\"En attente\"),\"Retour fait\"))","v":""},null,"2017-09-12"]
[null,null,null,null,null,null,null,null,null,null,"B",null,null,null,null,null,null,null,null,null,"2017-02-23",null,"",null,"2018-02-17"]
[null,null,null,null,null,null,null,null,null,null,"C",null,null,null,null,null,null,null,null,null,"2017-06-19",null,"",null,"2018-02-14"]
[null,null,null,null,null,null,null,null,null,null,"D",null,null,null,null,null,null,null,null,null,"2017-05-22",null,"",null,"2018-02-14"]
[null,null,null,null,null,null,null,null,null,null,"E",null,null,null,null,null,null,null,null,null,"2017-05-22",null,"",null,"2018-02-17"]
[null,null,null,null,null,null,null,null,null,null,"F",null,null,null,null,null,null,null,null,null,"2017-06-12",null,"",null,"2018-02-17"]
[null,null,null,null,null,null,null,null,null,null,"G",null,null,null,null,null,null,null,null,null,"2017-06-12",null,"",null,"2018-02-14"]
[null,null,null,null,null,null,null,null,null,null,"H",null,null,null,null,null,null,null,null,null,"2017-06-12",null,"",null,"2018-02-17"]
[null,null,null,null,null,null,null,null,null,null,"I",null,null,null,null,null,null,null,null,null,"2017-06-29",null,"Alerte, mail de relance à faire"]
[null,null,null,null,null,null,null,null,null,null,"J",null,null,null,null,null,null,null,null,null,"2017-06-29",null,"",null,"2018-02-14"]
[null,null,null,null,null,null,null,null,null,null,"K",null,null,null,null,null,null,null,null,null,"2017-06-29",null,"",null,"2017-09-22"]
[null,null,null,null,null,null,null,null,null,null,"L",null,null,null,null,null,null,null,null,null,"2017-06-29",null,"",null,"2018-02-14"]
[null,null,null,null,null,null,null,null,null,null,"M",null,null,null,null,null,null,null,null,null,"2017-03-20",null,"",null,"2017-09-24"]
[null,null,null,null,null,null,null,null,null,null,"N",null,null,null,null,null,null,null,null,null,"2017-03-17",null,"",null,"2017-09-25"]
[null,null,null,null,null,null,null,null,null,null,"O",null,null,null,null,null,null,null,null,null,"2017-07-11",null,"",null,"2017-09-26"]
[null,null,null,null,null,null,null,null,null,null,"P",null,null,null,null,null,null,null,null,null,"2017-07-11",null,"",null,"2017-09-27"]
[null,null,null,null,null,null,null,null,null,null,"Q",null,null,null,null,null,null,null,null,null,"2017-07-11",null,"",null,"2018-02-14"]
[null,null,null,null,null,null,null,null,null,null,"R",null,null,null,null,null,null,null,null,null,"2017-07-10",null,"Alerte, mail de relance à faire"]
[null,null,null,null,null,null,null,null,null,null,"S",null,null,null,null,null,null,null,null,null,"2017-07-13",null,"",null,"2017-09-30"]
[null,null,null,null,null,null,null,null,null,null,"T",null,null,null,null,null,null,null,null,null,"2017-07-13",null,"",null,"2017-10-01"]
[null,null,null,null,null,null,null,null,null,null,"U",null,null,null,null,null,null,null,null,null,"2017-07-13",null,"",null,"2017-10-02"]
[null,null,null,null,null,null,null,null,null,null,"V",null,null,null,null,null,null,null,null,null,"2017-06-15",null,"",null,"2017-10-03"]
[null,null,null,null,null,null,null,null,null,null,"W",null,null,null,null,null,null,null,null,null,"2017-07-28",null,"",null,"2017-10-04"]
[null,null,null,null,null,null,null,null,null,null,"X",null,null,null,null,null,null,null,null,null,"2017-09-22",null,"",null,"2017-10-05"]
[null,null,null,null,null,null,null,null,null,null,"Y",null,null,null,null,null,null,null,null,null,"2017-09-22",null,"",null,"2017-10-06"]
[null,null,null,null,null,null,null,null,null,null,"Z",null,null,null,null,null,null,null,null,null,"2017-10-19",null,"",null,"2017-10-07"]
[null,null,null,null,null,null,null,null,null,null,"AA",null,null,null,null,null,null,null,null,null,"2017-10-20",null,"",null,"2017-10-08"]
[null,null,null,null,null,null,null,null,null,null,"AB",null,null,null,null,null,null,null,null,null,"2017-10-20",null,"",null,"2017-10-09"]
[null,null,null,null,null,null,null,null,null,null,"AC",null,null,null,null,null,null,null,null,null,"2017-10-31",null,"",null,"2017-10-10"]
[null,null,null,null,null,null,null,null,null,null,"AD",null,null,null,null,null,null,null,null,null,"2017-10-31",null,"",null,"2017-10-11"]
[null,null,null,null,null,null,null,null,null,null,"AE",null,null,null,null,null,null,null,null,null,"2017-10-31",null,"",null,"2017-10-12"]
[null,null,null,null,null,null,null,null,null,null,"AF",null,null,null,null,null,null,null,null,null,"2017-10-31",null,"",null,"2017-10-13"]
[null,null,null,null,null,null,null,null,null,null,"AG",null,null,null,null,null,null,null,null,null,"2017-11-20",null,"",null,"2017-10-14"]
[null,null,null,null,null,null,null,null,null,null,"AH",null,null,null,null,null,null,null,null,null,"2017-10-31",null,"",null,"2017-10-15"]
[null,null,null,null,null,null,null,null,null,null,"AI",null,null,null,null,null,null,null,null,null,"2017-11-14",null,"",null,"2017-10-16"]
[null,null,null,null,null,null,null,null,null,null,"AJ",null,null,null,null,null,null,null,null,null,"2017-11-14",null,"",null,"2017-10-17"]
[null,null,null,null,null,null,null,null,null,null,"AK",null,null,null,null,null,null,null,null,null,"2017-12-01",null,"",null,"2017-10-18"]
[null,null,null,null,null,null,null,null,null,null,"AL",null,null,null,null,null,null,null,null,null,"2017-12-01",null,"",null,"2017-10-19"]
[null,null,null,null,null,null,null,null,null,null,"AM",null,null,null,null,null,null,null,null,null,"2017-12-01",null,"",null,"2017-10-20"]
[null,null,null,null,null,null,null,null,null,null,"AN",null,null,null,null,null,null,null,null,null,"2017-12-01",null,"",null,"2017-10-21"]
[null,null,null,null,null,null,null,null,null,null,"AO",null,null,null,null,null,null,null,null,null,"2017-12-01",null,"",null,"2017-10-22"]
[null,null,null,null,null,null,null,null,null,null,"AP",null,null,null,null,null,null,null,null,null,"2017-12-21",null,"",null,"2017-10-23"]
[null,null,null,null,null,null,null,null,null,null,"Sale gosse",null,null,null,null,null,null,null,null,null,"2017-12-21",null,"Alerte, mail de relance à faire"]
[null,null,null,null,null,null,null,null,null,null,"AR",null,null,null,null,null,null,null,null,null,"2017-12-22",null,"",null,"2017-10-25"]
[null,null,null,null,null,null,null,null,null,null,"AS",null,null,null,null,null,null,null,null,null,"2017-12-22",null,"",null,"2017-10-26"]
[null,null,null,null,null,null,null,null,null,null,"AT",null,null,null,null,null,null,null,null,null,"2017-12-22",null,"",null,"2017-10-27"]
[null,null,null,null,null,null,null,null,null,null,"AU",null,null,null,null,null,null,null,null,null,"2017-12-22",null,"",null,"2017-10-28"]
[null,null,null,null,null,null,null,null,null,null,"AV",null,null,null,null,null,null,null,null,null,"2017-12-19",null,"",null,"2017-10-29"]
[null,null,null,null,null,null,null,null,null,null,"AW",null,null,null,null,null,null,null,null,null,"2017-12-19",null,"",null,"2017-10-30"]
[null,null,null,null,null,null,null,null,null,null,"AX",null,null,null,null,null,null,null,null,null,"2018-01-04",null,"",null,"2017-10-31"]
[null,null,null,null,null,null,null,null,null,null,"AY",null,null,null,null,null,null,null,null,null,"2018-01-04",null,"",null,"2017-11-01"]
[null,null,null,null,null,null,null,null,null,null,"AZ",null,null,null,null,null,null,null,null,null,"2017-07-24",null,"",null,"2017-11-02"]
[null,null,null,null,null,null,null,null,null,null,"EEEEE",null,null,null,null,null,null,null,null,null,"2017-07-24",null,"",null,"2017-11-03"]
[null,null,null,null,null,null,null,null,null,null,"DDDDD",null,null,null,null,null,null,null,null,null,"2017-05-11",null,"",null,"2017-11-04"]
[null,null,null,null,null,null,null,null,null,null,"SSSS",null,null,null,null,null,null,null,null,null,"2018-01-25",null,"",null,"2017-11-05"]
[null,null,null,null,null,null,null,null,null,null,"ZZZZ",null,null,null,null,null,null,null,null,null,"2018-01-25",null,"",null,"2017-11-06"]
[null,null,null,null,null,null,null,null,null,null,"QQQ",null,null,null,null,null,null,null,null,null,"2018-01-23",null,"",null,"2017-11-07"]
[null,null,null,null,null,null,null,null,null,null,"ZEZZZ",null,null,null,null,null,null,null,null,null,"2018-01-22",null,"",null,"2017-11-08"]
[null,null,null,null,null,null,null,null,null,null,"ADD",null,null,null,null,null,null,null,null,null,"2018-01-22",null,"",null,"2017-11-09"]
[null,null,null,null,null,null,null,null,null,null,"AXS",null,null,null,null,null,null,null,null,null,"2018-01-22",null,"",null,"2017-11-10"]
[null,null,null,null,null,null,null,null,null,null,"SDF",null,null,null,null,null,null,null,null,null,"2018-01-22",null,"",null,"2017-11-11"]
[null,null,null,null,null,null,null,null,null,null,"FGH",null,null,null,null,null,null,null,null,null,"2018-01-22",null,"",null,"2017-11-12"]
[null,null,null,null,null,null,null,null,null,null,"RTTY",null,null,null,null,null,null,null,null,null,"2018-01-15",null,"",null,"2017-11-13"]
[null,null,null,null,null,null,null,null,null,null,"SSD",null,null,null,null,null,null,null,null,null,"2018-01-15",null,"",null,"2017-11-14"]
[null,null,null,null,null,null,null,null,null,null,"DDDQ",null,null,null,null,null,null,null,null,null,"2018-01-26",null,"",null,"2017-11-15"]
[null,null,null,null,null,null,null,null,null,null,"AAEERT",null,null,null,null,null,null,null,null,null,"2018-01-26",null,{"$f":"IF(OR(U73=\"\",Y73<>\"\"),\"\",IF(X73=\"\",IF((WORKDAY(U73,$L$2,0)<TODAY()),\"Alerte, mail de relance à faire\",\"En attente\"),\"Retour fait\"))","v":""},null,"2017-11-16"]
[null,null,null,null,null,null,null,null,null,null,"DEEFSDS",null,null,null,null,null,null,null,null,null,"2017-03-24",null,"",null,"2017-11-17"]
[null,null,null,null,null,null,null,null,null,null,"SSZZ",null,null,null,null,null,null,null,null,null,"2018-01-30",null,"",null,"2017-11-18"]
[null,null,null,null,null,null,null,null,null,null,"ERTES",null,null,null,null,null,null,null,null,null,"2018-01-30",null,"",null,"2017-11-19"]
[null,null,null,null,null,null,null,null,null,null,"SSCDSS",null,null,null,null,null,null,null,null,null,"2018-01-30",null,"",null,"2017-11-20"]
[null,null,null,null,null,null,null,null,null,null,"SDDFGGH",null,null,null,null,null,null,null,null,null,"2018-01-30",null,"",null,"2017-11-21"]
[null,null,null,null,null,null,null,null,null,null,"DDCCXS",null,null,null,null,null,null,null,null,null,"2018-01-30",null,"",null,"2017-11-22"]
[null,null,null,null,null,null,null,null,null,null,"QSZZRRT",null,null,null,null,null,null,null,null,null,"2018-01-30",null,"",null,"2017-11-23"]
[null,null,null,null,null,null,null,null,null,null,"SSXFGH",null,null,null,null,null,null,null,null,null,"2018-01-31",null,"",null,"2017-11-24"]
[null,null,null,null,null,null,null,null,null,null,"DDRRGHU",null,null,null,null,null,null,null,null,null,"2018-01-31",null,"",null,"2017-11-25"]
[null,null,null,null,null,null,null,null,null,null,"HGGEDS",null,null,null,null,null,null,null,null,null,"2018-01-31",null,"",null,"2017-11-26"]
[null,null,null,null,null,null,null,null,null,null,"DDFGTHJ",null,null,null,null,null,null,null,null,null,"2018-01-31",null,"",null,"2017-11-27"]
[null,null,null,null,null,null,null,null,null,null,"FFSZZERT",null,null,null,null,null,null,null,null,null,"2017-02-08",null,"",null,"2017-11-28"]
[null,null,null,null,null,null,null,null,null,null,"FFTYUJKK",null,null,null,null,null,null,null,null,null,"2017-02-08",null,"",null,"2017-11-29"]
[null,null,null,null,null,null,null,null,null,null,"DFFFHHTR",null,null,null,null,null,null,null,null,null,"2017-02-08",null,"",null,"2017-11-30"]
[null,null,null,null,null,null,null,null,null,null,"DDGGJHJKLL",null,null,null,null,null,null,null,null,null,"2017-02-08",null,"",null,"2017-12-01"]
[null,null,null,null,null,null,null,null,null,null,"FFFCDSSSZ",null,null,null,null,null,null,null,null,null,"2017-02-08",null,"",null,"2017-12-02"]
[null,null,null,null,null,null,null,null,null,null,"DDCFGGHJK",null,null,null,null,null,null,null,null,null,"2017-02-08",null,"",null,"2017-12-03"]
[null,null,null,null,null,null,null,null,null,null,"PMOOZSSS",null,null,null,null,null,null,null,null,null,"2017-02-08",null,"",null,"2018-02-14"]

{"sheet":"CdC","index":1,"n_rows":24,"n_cols":3,"rows_kept":24,"cut":false,"hidden":false,"merged":[]}
[]
[]
[null,null,"Envoi mail automatique sur Outlook depuis excel"]
[]
[null,null,"debutantvbaexcel - 8 févr. 2018 à 04:37 - Dernière réponse : debutantvbaexcel - 8 févr. 2018 à 16:15"]
[null,null,"Bonjour à tous et à toutes,"]
[]
[null,null,"Je recherche à automatiser l'envoi de mails de relance sur outlook depuis excel."]
[null,null,"Je dispose d'un fichier excel qui répertorie en fonction de chaque individu, une date limite. Lorsque cette date est dépassée, pour chaque individu, dans une autre cellule correspondante s'inscrit un message du type \"alerte, mail de relance\" et cette cellule devient rouge."]
[null,null,"Ex :"]
[null,null,"A1 : client 1 / B1 : date limite / C1 : cette cellule devient rouge lorsque la date limite est dépassée, et dans cette cellule le texte suivant est inscrit \"alerte, mail de relance\" / D1 : cette cellule indiquerait la date d'envoi du mail au client 1"]
[null,null,"A2 : client 2 / B2 : date limite / C2 : cette cellule devient rouge lorsque la date limite est dépassée, et dans cette cellule le texte suivant est inscrit \"alerte, mail de relance\" / D2 : cette cellule indiquerait la date d'envoi du mail au client 2"]
[null,null,"."]
[null,null,"."]
[null,null,"."]
[null,null,"A1000 : client 1000 / B1000 : date limite / C1000 : cette cellule devient rouge lorsque la date limite est dépassée, et dans cette cellule le texte suivant est inscrit \"alerte, mail de relance\" / D1000 : cette cellule indiquerait la date d'envoi du mail au client 1000"]
[null,null,"Je souhaiterais avoir une macro qui exécuterait la demande suivante : pour chaque cellule de la colonne C qui est rouge ou indique le message \"alerte, mail de relance\", la macro remonte à chaque fois à l'utilisateur le nom de chaque individu en demandant à utilisateur d'inscrire dans une première fenêtre le 1er destinataire (email 1) puis dans une 2e fenêtre le 2e destinataire, en copie du mail (email 2). Lorsque le mail a été envoyé pour l'individu 1, la macro parcoure les autres cellules et redemande les mêmes éléments précédents si la condition est toujours respectée (cellule rouge ou indique le message \"alerte, mail de relance\"). Enfin la macro finirait en indiquant la date du mail envoyé dans les cellules correspondantes de la colonne D."]
[]
[null,null,"En résumé, à chaque fois que la macro rencontre une cellule de la colonne C qui est rouge ou indique le message \"alerte, mail de relance\", alors elle remonte premièrement le nom de l'individu, deuxièmement elle demande à l'utilisateur dans une 1ère fenêtre le 1er destinataire (email 1), troisièmement elle demande à l'utilisateur dans une 2e fenêtre le 2e destinataire, en copie du mail (email 2), quatrièmement elle inscrit la date d'envoi du mail dans la cellule de la colonne D correspondante (cf exemple ci-dessus)."]
[null,null,"Les destinataires sont des variables changeantes, c'est pour cette raison qu'il serait préférable que la macro demande à l'utilisateur l'email."]
[]
[null,null,"Est-ce possible et y a t-il une synchronisation ou connexion ou configuration à faire entre outlook et excel ?"]
[]
[null,null,"Merci à tous et à toutes pour votre assistance."]